Cogmind - Beta 10.2 @@@ ROGUE MODE // 2021.08.13 @ 13:26:50 Player: AnthonyDPS 2004 Result: Destroyed by Y-45 Defender with Beam Rifle Performance ------------- Evolutions (2) 1000 Regions Visited (5) 1000 Robots Destroyed (8) 40 Value Destroyed (341) 341 Prototype IDs (2) 40 Alien Tech Used (0) 0 Bonus (470) 470 TOTAL SCORE: 2891 Bonus ------- Pacifist 470 Cogmind --------- Core Integrity 0/550 Matter 300/300 Energy 100/100 System Corruption 0% Temperature Cool (9) Movement Core (100) Ox1 Location -8/Materials Parts ------- > --- POWER (1) -------- (None) > --- PROPULSION (3) --- (None) > --- UTILITY (5) ------ Small Storage Unit > --- WEAPON (2) ------- Katana > --- INVENTORY (6) ---- Ion Engine Maneuvering Thrusters EM Pulse Gun Rocket Launcher Datajack Katana Peak State ------------ > --- POWER ------------ Heavy Ion Engine > --- PROPULSION ------- Aluminum Leg Hover Unit Hover Unit > --- UTILITY ---------- Small Storage Unit Maneuvering Thrusters Improved Trap Extractor Decoy Drone Bay > --- WEAPON ----------- Shock Rifle Pulse Rifle > --- INVENTORY -------- Ion Engine EM Pulse Gun Rocket Launcher [Rating: 34] Favorites ----------- Power Light Ion Engine Engine Light Ion Engine Power Core Light Nuclear Core Propulsion Hover Unit Leg Aluminum Leg Wheel Compact Wheel Hover Unit Hover Unit Utility Small Storage Unit Device Improved Trap Extractor Storage Small Storage Unit Processor Targeting Computer Protection Improved Power Shielding Weapon Katana Energy Gun EM Pulse Gun Ballistic Gun Light Assault Rifle Launcher Improved Grenade Launcher Slashing Weapon Katana Build | -11 -10 -10 -9 -9 -8 ------- Run | Scr Mat Min Mat Min Mat Slots Evolved 4 | . . . 2 . 2 Power . | . . . . . . Propulsion 1 | . . . . . 1 Utility 3 | . . . 2 . 1 Weapon . | . . . . . . Parts Attached 32 | 4 3 6 3 . 16 Power 5 | 1 . 1 2 . 1 Engine 4 | 1 . 1 2 . . Core 1 | . . . . . 1 Reactor . | . . . . . . Propulsion 6 | 2 . . . . 4 Treads . | . . . . . . Leg 2 | . . . . . 2 Wheel 2 | 2 . . . . . Hover 2 | . . . . . 2 Flight . | . . . . . . Utility 12 | 1 1 3 1 . 6 Device 6 | . . 1 1 . 4 Storage 2 | 1 1 . . . . Processor 2 | . . 1 . . 1 Hackware . | . . . . . . Protection 2 | . . 1 . . 1 Artifact . | . . . . . . Weapon 9 | . 2 2 . . 5 Energy Gun 5 | . 1 1 . . 3 Energy Cannon . | . . . . . . Ballistic Gun 1 | . 1 . . . . Ballistic Cannon . | . . . . . . Launcher 1 | . . 1 . . . Special Weapon . | . . . . . . Impact Weapon . | . . . . . . Slashing Weapon 2 | . . . . . 2 Piercing Weapon . | . . . . . . Special Melee Weapon . | . . . . . . Unidentified Prototypes 2 | . . . 2 . . Parts Lost 7 | . . . . . 7 Power 1 | . . . . . 1 Propulsion 3 | . . . . . 3 Utility 2 | . . . . . 2 Weapon 1 | . . . . . 1 Highest Loss Streak 6 | . . . . . 6 Average Slot Usage (%) 78 | . 86 96 88 88 67 Engine 8 | . 14 13 11 11 4 Core 2 | . . . . . 4 Leg 2 | . . . . . 4 Wheel 13 | . 28 28 22 22 1 Hover 5 | . . . . . 10 Device 11 | . . 4 22 22 16 Storage 11 | . 17 15 11 11 9 Processor 1 | . . 4 . . . Energy Gun 9 | . 13 12 11 11 6 Ballistic Gun 3 | . 13 5 . . . Launcher 2 | . . 7 11 11 . Slashing Weapon 5 | . . . . . 9 Naked Turns . | . . . . . . Heaviest Build 38 | 7 11 24 38 37 37 Greatest Support 26 | 26 26 26 26 26 26 Greatest Overweight (x) 3 | . . . 1 1 3 Average Overweight (x) . | . . . 1 1 . Largest Inventory Capacity 6 | 6 6 6 6 6 6 Average Capacity 5 | 4 6 6 6 6 6 Most Carried 6 | 6 6 6 4 4 6 Average Carried 4 | 3 4 5 4 4 4 Final Capacity 6 | 6 6 6 6 6 6 Final Carried 6 | 6 5 6 4 4 6 Class Distribution -------------------- 76% | Mutant 23% | Scavenger-Mutant Dominant Class ---------------- Mutant | -10/Materials Mutant | -10/Mines Mutant | -9/Materials Mutant | -9/Mines Mutant | -8/Materials Resources | -11 -10 -10 -9 -9 -8 ----------- Run | Scr Mat Min Mat Min Mat Matter Collected 541 | 229 . 79 32 . 201 Remotely . | . . . . . . Salvage Created 367 | . . . . . 367 Parts 13 | . . . . . 13 Haulers Intercepted . | . . . . . . Recyclers Shooed . | . . . . . . Parts Field Recycled . | . . . . . . Retrieved Matter . | . . . . . . Parts Self-Destructed . | . . . . . . Prevented . | . . . . . . Kills | -11 -10 -10 -9 -9 -8 ------- Run | Scr Mat Min Mat Min Mat Combat Hostiles Destroyed 7 | . . . . . 7 Melee 3 | . . . . . 3 Guns 3 | . . . . . 3 Classes Destroyed 3 | . . . . . 3 Operator 1 | . . . . . 1 Grunt 5 | . . . . . 5 Sentry 2 | . . . . . 2 Best Kill Streak 4 | . . . . . 4 Combat Bots Only 4 | . . . . . 4 Max Kills in Single Turn 1 | . . . . . 1 Gunslinging . | . . . . . . Exploded . | . . . . . . Melee 1 | . . . . . 1 Uniques/NPCs Destroyed . | . . . . . . Combat | -11 -10 -10 -9 -9 -8 -------- Run | Scr Mat Min Mat Min Mat Damage Taken 1442 | . . 44 50 . 1348 Core 620 | . . 40 28 . 552 Absorbed by Shields . | . . . . . . Core Remaining (%) 92 | 100 . 84 . 93 . Volleys Fired 16 | . . . 1 . 15 Largest 2 | . . . 1 . 2 Hottest 113 | . . . 40 . 113 Shots Fired 31 | . . . 1 . 30 Gun 31 | . . . 1 . 30 Cannon . | . . . . . . Launcher . | . . . . . . Special . | . . . . . . Kinetic . | . . . . . . Thermal 15 | . . . . . 15 Explosive . | . . . . . . Electromagnetic 16 | . . . 1 . 15 Robot Hit Streak 13 | . . . 1 . 13 Robot Miss Streak 4 | . . . . . 4 Penetration Max . | . . . . . . Secondary Targets 1 | . . . . . 1 Max Gunslinging Chain 1 | . . . . . 1 Shots Hit Robots 37 | . . . 1 . 36 Core Hits 11 | . . . . . 11 Critical Hits . | . . . . . . Critical Kills . | . . . . . . Critical Parts Destroyed . | . . . . . . Melee Attacks 23 | . . . . . 23 Impact . | . . . . . . Slashing 23 | . . . . . 23 Piercing . | . . . . . . Sneak Attacks 1 | . . . . . 1 Combat Hostiles . | . . . . . . Follow-up Attacks 1 | . . . . . 1 Damage Inflicted 881 | . . . . . 881 Guns 406 | . . . . . 406 Cannons . | . . . . . . Explosions . | . . . . . . Melee 475 | . . . . . 475 Ramming . | . . . . . . Kinetic . | . . . . . . Thermal 167 | . . . . . 167 Explosive . | . . . . . . Electromagnetic 239 | . . . . . 239 Impact . | . . . . . . Slashing 475 | . . . . . 475 Piercing . | . . . . . . Highest Corruption 1 | . 1 1 . . . Average Corruption 1 | . 1 1 . . . Corruption Purged . | . . . . . . Overload Shots . | . . . . . . Overflow Damage 64 | . . . . . 64 Projectiles . | . . . . . . Explosions . | . . . . . . Melee 64 | . . . . . 64 Knockbacks . | . . . . . . Impact . | . . . . . . Kinetic . | . . . . . . Secondary . | . . . . . . Self-Inflicted Damage . | . . . . . . Shots . | . . . . . . Rammed . | . . . . . . Targets Rammed . | . . . . . . Kicked . | . . . . . . Crushed . | . . . . . . Highest Temperature 603 | . . . . . 603 Average Temperature 297 | . . . . . 297 Received Heat Transfer 576 | . . . 18 . 558 Effects 13 | . . . . . 13 Shutdowns 2 | . . . . . 2 Interference 3 | . . . . . 3 Matter Decay 1 | . . . . . 1 Short Circuit 1 | . . . . . 1 Damage (minor) 3 | . . . . . 3 Damage (major) 3 | . . . . . 3 Siege Activations . | . . . . . . Robots Corrupted 1 | . . . . . 1 Combat Hostiles 1 | . . . . . 1 Parts Fried 2 | . . . . . 2 Impact Corruptions . | . . . . . . Robots Melted . | . . . . . . Combat Hostiles . | . . . . . . Parts Melted 1 | . . . . . 1 Heat Transferred 370 | . . . . . 370 Parts Sabotaged . | . . . . . . Parts Stolen . | . . . . . . Parts Stripped . | . . . . . . Power Chain Reactions . | . . . . . . Missiles Intercepted . | . . . . . . Alert | -11 -10 -10 -9 -9 -8 ------- Run | Scr Mat Min Mat Min Mat Peak Influence 115 | . 11 . 30 11 115 Initial 11 | . . . . 11 3 Average 32 | . 3 . 11 11 62 Maximum Alert Level . | . . . . . . Low Security (%) 100 | 100 100 100 100 100 100 Level 1 . | . . . . . . Level 2 . | . . . . . . Level 3 . | . . . . . . Level 4 . | . . . . . . Level 5 . | . . . . . . High Security . | . . . . . . Max Security . | . . . . . . Squads Dispatched 6 | . . . 1 . 5 Investigation . | . . . . . . Extermination . | . . . . . . Reinforcement 6 | . . . 1 . 5 Assault . | . . . . . . Garrison . | . . . . . . Intercept . | . . . . . . Construction Impeded . | . . . . . . Haulers Reinforced . | . . . . . . Stealth | -11 -10 -10 -9 -9 -8 --------- Run | Scr Mat Min Mat Min Mat Distress Signals 4 | . . . 2 . 2 Communications Jammed . | . . . . . . Distress Signals . | . . . . . . Times Spotted 18 | . . . 2 . 16 Peak Tracking Total 7 | . . . 2 . 7 Tactical Retreats 1 | . . . . . 1 Traps | -11 -10 -10 -9 -9 -8 ------- Run | Scr Mat Min Mat Min Mat Traps Triggered 5 | . 1 3 . . 1 Indirectly . | . . . . . . Trap Hack Attempts . | . . . . . . Triggered . | . . . . . . Disarmed . | . . . . . . Reprogrammed . | . . . . . . Reused . | . . . . . . Traps Extracted . | . . . . . . Installed . | . . . . . . Triggered . | . . . . . . Machines | -11 -10 -10 -9 -9 -8 ---------- Run | Scr Mat Min Mat Min Mat Machines Disabled . | . . . . . . Max in Single Turn . | . . . . . . Machines Sabotaged . | . . . . . . Garrisons Compromised . | . . . . . . Overloaded Fab Kills . | . . . . . . Fab Network Shutdowns . | . . . . . . Hacking | -11 -10 -10 -9 -9 -8 --------- Run | Scr Mat Min Mat Min Mat Machines Accessed 7 | . 5 2 . . . Terminals 4 | . 4 . . . . Fabricators . | . . . . . . Repair Stations . | . . . . . . Recycling Units 1 | . 1 . . . . Scanalyzers . | . . . . . . Garrison Access . | . . . . . . Total Hacks 14 | . 12 2 . . . Successful 7 | . 5 2 . . . Failed 7 | . 7 . . . . Catastrophic 1 | . 1 . . . . Database Lockouts . | . . . . . . Manual . | . . . . . . Terminals 11 | . 11 . . . . Fabricators . | . . . . . . Repair Stations . | . . . . . . Recycling Units 1 | . 1 . . . . Scanalyzers . | . . . . . . Garrison Access . | . . . . . . Terminal Hacks 6 | . 4 2 . . . Open Door 2 | . . 2 . . . Branch Access Points 1 | . 1 . . . . Emergency Access Points 1 | . 1 . . . . Unreport Threat 1 | . 1 . . . . Zone Layout 1 | . 1 . . . . Fabricator Hacks . | . . . . . . Repair Station Hacks . | . . . . . . Recycling Unit Hacks 1 | . 1 . . . . Report Inventory 1 | . 1 . . . . Scanalyzer . | . . . . . . Garrison Access Hacks . | . . . . . . Unauthorized Hacks . | . . . . . . Terminals . | . . . . . . Fabricators . | . . . . . . Repair Stations . | . . . . . . Recycling Units . | . . . . . . Scanalyzers . | . . . . . . Garrison Access . | . . . . . . Data Cores Recovered . | . . . . . . Used . | . . . . . . Hacking Detections 4 | . 4 . . . . Full Trace Events . | . . . . . . Feedback Events . | . . . . . . Feedback Blocked . | . . . . . . Robot Schematics Acquired . | . . . . . . Robots Built . | . . . . . . Matter . | . . . . . . Time . | . . . . . . Total Robot Build Rating . | . . . . . . Part Schematics Acquired . | . . . . . . Parts Built . | . . . . . . Matter . | . . . . . . Time . | . . . . . . Total Part Build Rating . | . . . . . . Parts Repaired . | . . . . . . Time . | . . . . . . Parts Recycled . | . . . . . . Recycled Matter . | . . . . . . Retrieved Matter . | . . . . . . Retrieved Components . | . . . . . . Parts Scanalyzed . | . . . . . . Part Schematics Acquired . | . . . . . . Parts Damaged . | . . . . . . Bothacking | -11 -10 -10 -9 -9 -8 ------------ Run | Scr Mat Min Mat Min Mat Used RIF Installer . | . . . . . . Robots Hacked . | . . . . . . Non-combat . | . . . . . . Combat . | . . . . . . Robot Hacks Applied . | . . . . . . Relay Couplers Released . | . . . . . . Robots Rewired . | . . . . . . Allies Hacked . | . . . . . . Hacks Repelled . | . . . . . . Allies | -11 -10 -10 -9 -9 -8 -------- Run | Scr Mat Min Mat Min Mat Total Allies . | . . . . . . Largest Group . | . . . . . . Highest-Rated Group . | . . . . . . Highest-Rated Ally . | . . . . . . Total Orders 3 | . . . 2 . 1 EXPLORE 3 | . . . 2 . 1 Ally Attacks . | . . . . . . Total Damage . | . . . . . . Kills . | . . . . . . Allies Corrupted . | . . . . . . Allies Melted . | . . . . . . Intel | -11 -10 -10 -9 -9 -8 ------- Run | Scr Mat Min Mat Min Mat Robot Analysis Total . | . . . . . . Derelict Logs Recovered 1 | . . 1 . . . Drone Launches 3 | . . . 2 . 1 Drone Recoveries . | . . . . . . Exploration | -11 -10 -10 -9 -9 -8 ------------- Run | Scr Mat Min Mat Min Mat Turns Passed 1144 | 70 180 226 89 13 566 Spaces Moved 913 | 68 195 228 56 14 352 Core 13 | 8 . . . . 5 Treads . | . . . . . . Legs 58 | . . . . . 58 Wheels 593 | 60 195 228 56 14 40 Hover 249 | . . . . . 249 Flight . | . . . . . . Fastest Speed 50 | 50 90 90 100 100 56 Average Speed 99 | 85 90 90 100 100 113 Slowest Speed 210 | 90 90 90 100 100 210 Overloaded Moves . | . . . . . . Propulsion Burnouts . | . . . . . . Robots Hopped . | . . . . . . Cave-ins Triggered . | . . . . . . Exploration Rate (%) 30 | 4 35 65 34 11 33 Regions Visited 5 Branch Regions 2 Pre-discovered Areas . | . . . . . . Known Exits Taken 1 | . 1 . . . . Unknown Exits Taken 4 | 1 . 1 1 1 . Scrap Searched . | . . . . . . Spaces Dug . | . . . . . . Terrain Destroyed . | . . . . . . Melee . | . . . . . . Projectile . | . . . . . . AOE . | . . . . . . Terrain Rammed . | . . . . . . Walls Destroyed . | . . . . . . Machines Disabled . | . . . . . . Actions | -11 -10 -10 -9 -9 -8 --------- Run | Scr Mat Min Mat Min Mat Total 1080 | 77 198 248 88 13 456 Wait 71 | . . 8 27 . 36 Move 908 | 67 194 227 55 13 352 Hop . | . . . . . . Pick Up 13 | 6 1 2 . . 4 Fast Attach 22 | 4 1 6 2 . 9 Attach 6 | . 2 . 1 . 3 Detach 1 | . . . . . 1 Swap 4 | . . . . . 4 Drop 18 | . . 5 2 . 11 Fire 16 | . . . 1 . 15 Melee 21 | . . . . . 21 Ram . | . . . . . . Kick . | . . . . . . Crush . | . . . . . . Escape Stasis . | . . . . . . Rewire . | . . . . . . Trap . | . . . . . . Miscellaneous . | . . . . . . Route ------- -11/Scrapyard -10/Materials (discovered 2 exits: *Min x2) -10/Mines -9/Materials -9/Mines -8/Materials (discovered 1 exit: [*Fac]) History --------- Turn | Location | Event 8 | -11/Scrapyard | Discovered new exit (range 15) 71 | -11/Scrapyard | Entered Materials 88 | -10/Materials | Identified exit to Mines 251 | -10/Materials | Entered Mines 274 | -10/Mines | Found the Drone Emporium 280 | -10/Mines | Found Prototype Device 308 | -10/Mines | Build established: Mutant 322 | -10/Mines | Received a Rocket Launcher from a helpful Derelict 345 | -10/Mines | Met a Derelict who couldn't figure out how to use a Trap Extractor 423 | -10/Mines | Learned Materials emergency access door positions 464 | -10/Mines | Discovered new exit (range 14) 477 | -10/Mines | Entered Materials 477 | -9/Materials | Evolved 2 slots: Utility x2 477 | -9/Materials | Identified Decoy Drone Bay 554 | -9/Materials | Discovered new exit (range 13) 566 | -9/Materials | Entered Mines 573 | -9/Mines | Discovered new exit (range 6) 579 | -9/Mines | Entered Materials 579 | -8/Materials | Evolved 2 slots: Propulsion x1, Utility x1 677 | -8/Materials | Discovered new exit (range 55) 1122 | -8/Materials | Core integrity fell below 50% 1137 | -8/Materials | Core integrity fell below 20% 1145 | -8/Materials | Destroyed by Y-45 Defender with Beam Rifle Last Messages --------------- 01073_ Dropped Hvy. Ion Engine. 01074_ Acquired Datajack. 01089_ W-25 Informer sends out distress signal. 01092_ Katana follow-up attack on G-47 Trooper. 01100_ Hadron Collector disabled. 01102_ G-47 Trooper destroyed. 01103_ Hover Unit destroyed. 01103_ Lgt. Nuclear Core destroyed. 01106_ Destroyed Heat Sink. 01109_ Integration Mediator destroyed. 01109_ Hover Unit destroyed. 01111_ Y-45 Defender destroyed. 01112_ Imp. Heat Sink destroyed. 01115_ G-47 Trooper destroyed. 01126_ K-01 Serf collects debris. 01130_ Katana destroyed. 01134_ K-01 Serf collects debris. 01141_ ALERT: Hostiles spotted, dispatching reinforcements to Terminal M002. 01144_ K-01 Serf collects debris. Map ----- +----------------------------------------------------+ | | | | | | | | | | | | | | | | | | | ?????????????????????????????????????????????????? | | ?????????????????????????????????????????????????? | | ????????????????????##########???????????????????? | | ????????????????????# ????????????????????? | | ????????????????????# ?????????????????????? | | ????????????????????# ?????????????????????? | | ????????????????????# ??????????????????????? | | ????????????????????# ???????????????????????? | | ????????????????????# #???????????????????????? | | ????????????????????# #???????????????????????? | | ????????????????????# #???????????????????????? | | ????????????????????# #????????#??????????????? | | ???????????????????## ########+#??????????????? | | ???????????????????# # # #?????????????? | | ???????????????????# T # # """ """ #?????????????? | | ???????????????????# #Y# """ """ #?????????????? | | ???????????????????## ## @g""" """ #?????????????? | | ?????????"??????????#*#### ""k""" #?????????????? | | ?????????"" ????????# #??# != #?????????????? | | ???????? "" ??????# #??#!*%%! #?????????????? | | ??????? """ ##### #??# [*=! #?????????????? | | ??????? "" ########+#####?????????????? | | ??????? "" % ####????????????? | | ?????? " +????????????? | | ?????? ###?????????????? | | ????? ############ #???????????????? | | ?????## ##########???????????# #######+###?????? | | ?????????????????????????????# #?????? | | ?????????????????????????????+ +?????# | | ?????????????????????????????# #?????# | | ?????????????????????????????######+###### #?????# | | ???????????????????????????????# #???????# | | ???????????????????????????????# """ !#???????# | | ???????????????????????????????# """"" #???????# | | ???????????????????????????????# """"" #???????# | | ?????????????????#?????????????# """"" #???????# | | ????????????????# ???#???????# """ #???????# | | ????????????????# ## ####### #???????# | | ????????????????# + #???????# | | ???????????????????????# ###########??????## | | ???????????????????????# #######??????????# | +----------------------------------------------------+ Best States ------------- Heat Dissipation 45 Energy Generation 14 Energy Capacity 280 Matter Stores 300 Matter Capacity 350 Sight Range 16 Terrain Scan Density 10 Power Shielding 66 Evasion (%) 53 Item Schematics ----------------- None Robot Schematics ------------------ None Fabricated ------------ Nothing Alien Tech Used ----------------- None Achievements -------------- None Challenges ------------ None Game ------ Seed SpreadStormDisintegrator Manual? 0 Play Time 00:20:01 Cumulative 19.3 hours Start 2021.08.13 @ 12:34:01 End 2021.08.13 @ 13:26:50 Sessions 1 Manual Loads 0 Difficulty Rogue Special Mode None Game No. 37 Rogue 37 Adventurer 0 Explorer 0 Win Type - Total 0 Types 0/0/0/0/0/0/0/0/0 Lore% 22 Gallery% 27 Achievement% 19 Wizard Run 0 Options --------- ASCII 0 Keyboard 1 Movement Numpad Keybinds 0 Fullscreen 2 Font 18/SmallcapsGlow Map View 76x50 Tactical HUD 1 Map Filters NONE Filters NONE Steam 1 RUN: 4b51c455-60ee-4d1b-af06-c247eb8f7d91